[Event "FIDE WSTC Open 50 2025"]
[Site "Prague"]
[Date "2025.02.21"]
[Round "5.35"]
[White "Nordenbaek, Jan"]
[Black "Svobodova, Michaela"]
[Result "1/2-1/2"]
[Annotator "ChessBase"]
[ECO "B22"]
[WhiteElo "2192"]
[BlackElo "2048"]
[PlyCount "36"]
[EventDate "2025.02.17"]
[EventType "team-tourn"]
[EventCountry "CZE"]
[SourceTitle "playchess.com"]
[Source "ChessBase"]
[SourceQuality "1"]
[TimeControl "40/5400+30:1800+30"]

1. e4 {[%emt 0:00:05]} c5 {[%emt 0:00:24]} 2. c3 {[%emt 0:00:35]} d5 {[%emt 0:01:10]} 3. exd5 {[%emt 0:00:11]} Nf6 {[%emt 0:05:31]} 4. d4 {[%emt 0:01:21]} cxd4 {[%emt 0:02:58]} 5. Qa4+ {[%emt 0:07:49]} Nbd7 {[%emt 0:07:13]} 6. Qxd4 {[%emt 0:00:09]} Nb6 {[%emt 0:03:32]} 7. Nf3 {[%emt 0:04:36]} Qxd5 {[%emt 0:03:57]} 8. Qxd5 {[%emt 0:01:59]} Nbxd5 {[%emt 0:01:07]} 9. Bb5+ {[%emt 0:00:38]} Bd7 {[%emt 0:00:48]} 10. Bxd7+ {[%emt 0:00:24]} Nxd7 {[%emt 0:00:38]} 11. O-O {[%emt 0:04:03]} e6 {[%emt 0:03:30]} 12. Nbd2 {[%emt 0:02:32]} Be7 {[%emt 0:01:24]} 13. Nb3 {[%emt 0:01:55]} O-O {[%emt 0:03:22]} 14. Bd2 {[%emt 0:01:19]} Rac8 {[%emt 0:04:56]} 15. Rfe1 {[%emt 0:01:50]} Rfd8 {[%emt 0:02:53]} 16. Rad1 {[%emt 0:00:22]} Nc5 {[%emt 0:04:52]} 17. Nxc5 {[%emt 0:00:40]} Bxc5 {[%emt 0:00:47]} 18. g3 {[%emt 0:01:45]} Be7 {[%emt 0:10:38]} 1/2-1/2

[Event "FIDE WSTC Open 50 2025"]
[Site "Prague"]
[Date "2025.02.21"]
[Round "5.39"]
[White "Sagalchik, Olga"]
[Black "Mitchell, Martin"]
[Result "1/2-1/2"]
[Annotator "NA"]
[ECO "E10"]
[WhiteElo "2097"]
[BlackElo "2143"]
[PlyCount "33"]
[EventDate "2025.02.17"]
[EventType "team-tourn"]
[EventCountry "CZE"]
[SourceTitle "playchess.com"]
[Source "ChessBase"]
[SourceQuality "1"]
[TimeControl "40/5400+30:1800+30"]

1. d4 {[%emt 0:00:07]} Nf6 {[%emt 0:00:15]} 2. c4 {[%emt 0:00:07]} e6 {[%emt 0:00:08]} 3. Nf3 {[%emt 0:00:59]} c5 {[%emt 0:00:15]} 4. Nc3 {[%emt 0:01:45]} cxd4 {[%emt 0:01:47]} 5. Nxd4 {[%emt 0:00:48]} a6 {[%emt 0:00:51]} 6. e4 {[%emt 0:05:40]} d6 {[%emt 0:04:30]} 7. Be2 {[%emt 0:04:22]} Be7 {[%emt 0:00:54]} 8. O-O {[%emt 0:05:15]} O-O {[%emt 0:00:16]} 9. Kh1 {[%emt 0:02:10]} b6 {[%emt 0:03:12]} 10. Be3 {[%emt 0:02:17]} Bb7 {[%emt 0:02:04]} 11. f3 {[%emt 0:03:51]} Nbd7 {[%emt 0:03:48]} 12. Qd2 {[%emt 0:05:17]} Rc8 {[%emt 0:09:15]} 13. Rad1 {[%emt 0:08:50]} Qc7 {[%emt 0:06:22]} 14. Na4 {[%emt 0:11:04]} Nc5 {[%emt 0:08:40]} 15. Nc3 {[%emt 0:00:52]} Ncd7 {[%emt 0:01:36]} 16. Na4 {[%emt 0:01:15]} Nc5 {[%emt 0:02:39]} 17. Nc3 {[%emt 0:01:17]} 1/2-1/2